bitfinex/quotes_BTCUSD_20230120
["timestamp","ask_amount","ask_price","bid_price","bid_amount"]
[1674248231573,0.00019,22246.0,22242.0,1.049178]
[1674248231822,0.00019,22246.0,22243.0,0.033322]
[1674248232068,0.00019,22246.0,22242.0,1.049178]
[1674248232827,0.00019,22246.0,22243.0,0.48779415]
[1674248233098,0.10637,22258.0,22244.0,0.899118]
[1674248233404,0.10637,22258.0,22245.0,0.033317]
[1674248233623,0.15,22256.0,22247.0,1.348488]
[1674248233872,0.00028371,22252.0,22248.0,0.033302]
[1674248234126,0.00028371,22252.0,22249.0,1.80283515]
[1674248234371,0.00028371,22252.0,22251.0,0.15]
[1674248234623,3.71e-06,22252.0,22251.0,1.082126]
[1674248235666,0.06492649,22264.0,22252.0,0.15]
[1674248235965,0.07548363,22263.0,22255.0,0.449325]
[1674248236208,0.64938804,22266.0,22256.0,0.033266]
[1674248236438,0.72493705,22265.0,22257.0,0.449291]
[1674248236690,0.291261,22264.0,22257.0,0.449291]
[1674248236952,0.464598,22263.0,22256.0,0.449307]
[1674248237211,1.39170258,22262.0,22253.0,0.449366]
[1674248237457,1.11506158,22261.0,22252.0,0.449379]
[1674248237709,1.23484658,22260.0,22252.0,0.449379]
[1674248237966,0.449282,22258.0,22250.0,0.449427]
[1674248238237,1.10233358,22257.0,22246.0,0.449705]
[1674248238568,0.911226,22254.0,22246.0,0.00019]
[1674248238813,0.95623658,22253.0,22246.0,0.00019]
[1674248239074,0.36951658,22252.0,22246.0,0.449507]
[1674248239323,0.18502243,22251.0,22245.0,0.15]
[1674248239587,0.63949558,22250.0,22242.0,0.45373372]
[1674248239907,0.51417043,22249.0,22245.0,0.0765]
[1674248240112,0.49282543,22248.0,22245.0,0.0665]
[1674248240361,0.15,22246.0,22245.0,0.0665]
[1674248240607,0.65313243,22246.0,22245.0,0.0665]
[1674248240868,0.46811,22246.0,22245.0,0.0665]
[1674248241117,0.31811,22246.0,22245.0,0.0665]
[1674248241365,0.31811,22246.0,22245.0,0.0664]
[1674248241902,0.0125,22254.0,22245.0,0.07304]
[1674248242157,0.19752243,22254.0,22246.0,0.449502]
[1674248242435,0.19752243,22254.0,22245.0,0.0664]
[1674248242436,0.60447315,22253.0,22245.0,0.0664]
[1674248242692,0.898847,22251.0,22245.0,0.0664]
[1674248242932,0.65815143,22250.0,22245.0,0.0664]
[1674248243198,0.48374043,22249.0,22245.0,0.0664]
[1674248243455,0.64665243,22248.0,22245.0,0.0664]
[1674248243749,1.064031,22247.0,22245.0,0.0664]
[1674248243959,0.32026,22246.0,22245.0,0.0664]
[1674248244227,1.44342802,22246.0,22245.0,0.0001]
[1674248244490,1.44342802,22246.0,22242.0,0.00413772]
[1674248244491,0.05246601,22244.0,22242.0,0.00413772]
[1674248244740,1.67388015,22243.0,22242.0,0.00413772]
[1674248245032,2.43163374,22243.0,22242.0,0.00413772]
[1674248245245,1.97388015,22243.0,22242.0,0.00413772]
[1674248245539,1.97388015,22243.0,22237.0,0.00413772]
[1674248245540,0.00413,22242.0,22237.0,0.00413772]
[1674248245786,0.00413,22242.0,22237.0,0.45383172]
[1674248245787,0.51905743,22242.0,22237.0,0.45383172]
[1674248246038,0.328414,22241.0,22237.0,0.45383172]
[1674248246353,0.68987043,22240.0,22237.0,0.45383172]
[1674248246571,0.68987043,22240.0,22237.0,0.00413772]
[1674248246572,0.324577,22239.0,22237.0,0.00413772]
[1674248246838,0.324496,22238.0,22237.0,0.00413772]
[1674248247097,0.80951843,22238.0,22237.0,0.00413772]
[1674248247347,0.474496,22238.0,22237.0,7.72e-06]
[1674248247866,0.324496,22238.0,22237.0,7.72e-06]
[1674248248355,1.074176,22238.0,22237.0,7.72e-06]
[1674248248605,0.774176,22238.0,22237.0,7.72e-06]
[1674248248858,1.074176,22238.0,22237.0,7.72e-06]
[1674248249112,1.52864915,22238.0,22237.0,7.72e-06]
[1674248249368,0.774176,22238.0,22237.0,7.72e-06]
[1674248249631,1.52864915,22238.0,22237.0,7.72e-06]
[1674248250963,1.52864915,22238.0,22228.0,0.61045253]
[1674248251213,1.52864915,22238.0,22228.0,0.017995]
[1674248251214,1.48412719,22237.0,22228.0,0.017995]
[1674248251513,0.89951,22235.0,22228.0,0.017995]
[1674248251754,0.38180001,22233.0,22228.0,0.017995]
[1674248251991,1.41139743,22232.0,22228.0,0.017995]
[1674248252245,0.65426843,22231.0,22228.0,0.017995]
[1674248252492,0.320419,22230.0,22228.0,0.017995]
[1674248252838,0.449803,22232.0,22228.0,0.017995]
[1674248252839,0.318226,22229.0,22228.0,0.022713]
[1674248253042,0.83158501,22233.0,22228.0,0.017713]
[1674248253312,0.15,22232.0,22228.0,0.017713]
[1674248253563,0.311589,22231.0,22228.0,0.017713]
[1674248253815,0.462429,22230.0,22228.0,0.017713]
[1674248254105,0.29668545,22229.0,22228.0,0.017713]
[1674248254344,0.599816,22232.0,22228.0,4.41916941]
[1674248254595,0.526116,22232.0,22228.0,4.41916941]
[1674248255095,0.98058915,22232.0,22228.0,4.41916941]
[1674248255380,0.75447315,22231.0,22228.0,4.41916941]
[1674248255683,1.84635758,22230.0,22225.0,0.00496489]
[1674248255911,0.96068158,22229.0,22225.0,0.00496489]
[1674248256161,1.70756258,22228.0,22225.0,0.00496489]
[1674248256410,0.89874415,22227.0,22225.0,0.00496489]
[1674248256703,1.96559715,22226.0,22225.0,0.00496489]
[1674248256952,0.311278,22226.0,22225.0,0.00496489]
[1674248257209,0.611278,22226.0,22225.0,0.00496489]
[1674248257462,0.311278,22226.0,22225.0,0.00496489]
[1674248257715,0.611278,22226.0,22225.0,0.00496489]
[1674248257965,1.06575115,22226.0,22225.0,0.00496489]
[1674248258214,1.21575115,22226.0,22225.0,0.00496489]
[1674248258466,1.55156786,22226.0,22225.0,0.00496489]
[1674248258744,1.55156786,22226.0,22225.0,4.89e-06]
[1674248259008,1.21575115,22226.0,22225.0,4.89e-06]
[1674248259339,0.761278,22226.0,22225.0,4.89e-06]
[1674248259558,1.21575115,22226.0,22225.0,4.89e-06]
[1674248260534,0.461278,22226.0,22225.0,4.4191743]
[1674248260785,0.311278,22226.0,22225.0,4.4191743]
[1674248261284,0.4927,22227.0,22225.0,4.4191743]
[1674248262049,0.4927,22227.0,22226.0,0.0503]
[1674248262294,0.4927,22227.0,22225.0,4.4191743]
[1674248262806,0.4927,22227.0,22226.0,0.15]
[1674248263596,0.4927,22227.0,22226.0,0.187902]
[1674248263867,0.4927,22227.0,22226.0,0.64741859]
[1674248264126,0.44964,22240.0,22227.0,0.4927]
[1674248264381,0.63949558,22240.0,22230.0,0.899676]
[1674248264639,0.706587,22243.0,22231.0,0.037874]
[1674248264890,0.74160943,22243.0,22234.0,0.899498]
[1674248265155,0.50203301,22244.0,22234.0,0.899498]
[1674248265405,0.15,22242.0,22235.0,0.15]
[1674248265756,0.31285,22241.0,22235.0,0.599723]
[1674248265942,0.307165,22240.0,22235.0,0.449735]
[1674248266267,0.15,22242.0,22234.0,0.44976]
[1674248266269,0.05246601,22244.0,22235.0,0.449735]
[1674248266507,0.23748844,22244.0,22237.0,0.15]
[1674248266767,0.23748844,22244.0,22235.0,0.494711]
[1674248267024,0.18502243,22243.0,22236.0,0.15]
[1674248267295,0.18502243,22243.0,22235.0,0.449735]
[1674248267296,0.18502243,22242.0,22235.0,0.449735]
[1674248267546,0.96305358,22241.0,22233.0,0.449773]
[1674248267780,0.97509874,22240.0,22231.0,0.449818]
[1674248268058,0.14774647,22238.0,22229.0,0.449857]
[1674248268301,0.14774647,22238.0,22228.0,0.559304]
[1674248268302,1.05679458,22237.0,22228.0,0.449874]
[1674248268567,1.25341858,22236.0,22228.0,0.449874]
[1674248268801,0.18502243,22235.0,22228.0,0.449874]
[1674248269072,0.107,22237.0,22230.0,0.15]
[1674248269073,0.18276839,22234.0,22230.0,0.15]
[1674248269311,0.18502243,22236.0,22230.0,0.599829]
[1674248269620,0.18502243,22235.0,22230.0,0.449829]
[1674248269830,0.18502243,22234.0,22228.0,0.449874]
[1674248270061,0.3,22236.0,22227.0,0.449896]
[1674248270062,0.33276799,22233.0,22227.0,0.449896]
[1674248270301,0.26325,22237.0,22227.0,0.449896]
[1674248270302,0.15,22237.0,22227.0,0.449896]
[1674248270550,0.18502243,22236.0,22227.0,0.449896]
[1674248270794,0.13502243,22235.0,22228.0,0.10640403]
[1674248271030,0.15,22237.0,22230.0,1.349521]
[1674248271278,0.15,22237.0,22230.0,0.89968]
[1674248271518,0.18502243,22236.0,22231.0,0.06626403]
[1674248271762,0.308623,22235.0,22231.0,0.06626403]
[1674248272008,0.769431,22234.0,22229.0,0.449854]
[1674248272276,0.50777543,22233.0,22226.0,0.449913]
[1674248272519,0.50777543,22233.0,22225.0,4.4191743]
[1674248272520,0.79521343,22232.0,22225.0,4.4191743]
[1674248272765,0.310926,22231.0,22225.0,4.89e-06]
[1674248273016,0.765302,22230.0,22225.0,4.89e-06]
[1674248273256,0.31594,22229.0,22225.0,4.89e-06]
[1674248273546,0.81521243,22228.0,22225.0,4.89e-06]
[1674248273766,0.15,22226.0,22225.0,4.89e-06]
[1674248274008,0.564044,22232.0,22225.0,4.89e-06]
[1674248274264,0.15,22234.0,22226.0,0.06626403]
[1674248274516,0.15,22234.0,22227.0,0.06626403]
[1674248274517,1.37060658,22234.0,22227.0,0.06626403]
[1674248274762,0.45447315,22233.0,22228.0,0.06626403]
[1674248275025,0.15,22232.0,22228.0,0.06626403]
[1674248275259,0.15,22230.0,22225.0,4.89e-06]
[1674248275520,0.95261058,22229.0,22225.0,4.89e-06]
[1674248275766,1.40980858,22228.0,22225.0,4.89e-06]
[1674248276015,0.464633,22227.0,22225.0,4.89e-06]
[1674248276269,0.308126,22226.0,22225.0,4.89e-06]
[1674248276507,1.51225215,22226.0,22225.0,4.89e-06]
[1674248276747,0.307856,22226.0,22225.0,4.89e-06]
[1674248277234,0.307856,22226.0,22223.0,0.00800489]
[1674248277477,0.15,22227.0,22223.0,0.00800489]
[1674248277704,0.317227,22226.0,22223.0,0.00800489]
[1674248277942,0.15,22224.0,22223.0,0.00800489]
[1674248278184,0.771734,22224.0,22223.0,0.00800489]
[1674248278420,0.471734,22224.0,22223.0,0.00800489]
[1674248278706,0.621734,22224.0,22223.0,0.00800489]
[1674248278940,0.31947854,22224.0,22223.0,0.00800489]
[1674248279174,0.15,22225.0,22223.0,0.00800489]
[1674248279414,1.35442415,22225.0,22223.0,0.00800489]
[1674248279666,0.77059815,22224.0,22223.0,0.00800489]
[1674248279915,0.00435904,22222.0,22220.0,4.42935338]
[1674248280152,1.50452115,22221.0,22220.0,4.42935338]
[1674248280410,2.56706615,22221.0,22220.0,4.42935338]
[1674248280892,2.56481039,22221.0,22220.0,0.01018397]
[1674248281233,1.80226539,22221.0,22220.0,0.01018397]
[1674248281400,2.12423139,22221.0,22220.0,0.01018397]
[1674248281636,2.12423139,22221.0,22220.0,0.00518397]
[1674248282368,0.00466715,22219.0,22218.0,0.00322728]
[1674248282643,2.44957573,22219.0,22216.0,1.623e-05]
[1674248282910,0.15,22217.0,22216.0,1.623e-05]
[1674248283151,0.15,22216.0,22207.0,0.08021189]
[1674248283401,1.05036,22214.0,22206.0,0.15019]
[1674248283643,0.80097343,22213.0,22206.0,0.15019]
[1674248283894,0.64971443,22212.0,22206.0,0.15019]
[1674248284144,0.26465,22216.0,22206.0,0.59403229]
[1674248284145,0.18502243,22211.0,22206.0,0.59403229]
[1674248284408,0.00019,22211.0,22207.0,0.07309302]
[1674248284630,0.00019,22211.0,22210.0,1.350715]
[1674248284874,0.07519,22211.0,22210.0,0.042756]
[1674248285131,0.07519,22211.0,22207.0,0.450291]
[1674248285364,0.07519,22211.0,22206.0,0.018014]
[1674248285365,0.18502243,22210.0,22206.0,0.018014]
[1674248285607,0.18502243,22209.0,22206.0,0.018014]
[1674248286081,0.313085,22208.0,22206.0,0.018014]
[1674248286335,0.450194,22213.0,22206.0,0.018014]
[1674248286336,0.11432,22214.0,22206.0,0.50043542]
[1674248286590,0.11432,22214.0,22207.0,0.06852029]
[1674248286591,0.29934243,22214.0,22207.0,0.06852029]
[1674248286847,0.15,22213.0,22208.0,0.51878929]
[1674248287086,0.450094,22218.0,22209.0,0.06852029]
[1674248287342,0.63949558,22217.0,22210.0,0.06852029]
[1674248287575,0.15466715,22219.0,22212.0,0.15]
[1674248287810,0.77398698,22219.0,22213.0,0.06852029]
[1674248288050,0.32008,22218.0,22214.0,0.06852029]
[1674248288297,0.327696,22217.0,22215.0,0.06852029]
[1674248288533,0.00019,22218.0,22212.0,0.450187]
[1674248288790,0.00019,22218.0,22214.0,0.15]
[1674248289030,0.00019,22218.0,22214.0,0.21852029]
[1674248289519,0.00019,22218.0,22211.0,0.450221]
[1674248289520,0.63968558,22218.0,22211.0,0.450221]
[1674248289766,0.89939875,22217.0,22209.0,0.450259]
[1674248290049,0.89939875,22217.0,22214.0,0.0046]
[1674248290050,0.18502243,22216.0,22214.0,0.0046]
[1674248290311,0.45447315,22215.0,22214.0,0.0046]
[1674248290541,0.76428715,22215.0,22214.0,0.0046]
[1674248290775,1.21428715,22215.0,22214.0,0.0036]
[1674248291017,1.20428715,22215.0,22214.0,0.0036]
[1674248292226,0.299814,22215.0,22214.0,0.0036]
[1674248292475,1.05428715,22215.0,22214.0,0.0036]
[1674248292737,1.20428715,22215.0,22214.0,0.0036]
[1674248293477,0.299814,22215.0,22214.0,0.0036]
[1674248293717,0.449814,22215.0,22214.0,0.0036]
[1674248293959,0.449814,22215.0,22214.0,0.0035]
[1674248294206,0.299814,22215.0,22214.0,0.07218]
[1674248294441,0.450091,22218.0,22214.0,0.0035]
[1674248294710,1.0,22215.0,22214.0,0.0035]
[1674248294957,1.0,22215.0,22205.0,0.00310023]
[1674248294958,0.00314956,22213.0,22205.0,0.00310023]
[1674248295205,0.90047,22211.0,22205.0,0.00310023]
[1674248295446,0.94579858,22210.0,22205.0,0.00310023]
[1674248295681,0.79124843,22209.0,22205.0,0.00310023]
[1674248295920,0.51061343,22208.0,22205.0,0.00310023]
[1674248296158,1.03212158,22207.0,22205.0,0.00310023]
[1674248296447,0.307788,22206.0,22205.0,0.00310023]
[1674248296944,0.0679,22207.0,22205.0,0.00310023]
[1674248297217,0.0677,22207.0,22205.0,0.00310023]
[1674248297734,0.474914,22206.0,22205.0,0.00310023]
[1674248298223,0.474914,22206.0,22198.0,0.67031103]
[1674248298224,0.775242,22206.0,22198.0,0.67031103]
[1674248298475,0.50113943,22205.0,22199.0,0.42778757]
[1674248298741,0.1037,22207.0,22200.0,0.15]
[1674248298742,0.18502243,22204.0,22200.0,0.15]
[1674248298962,0.18502243,22204.0,22200.0,0.600441]
[1674248299200,0.18502243,22204.0,22200.0,0.15]
[1674248299446,0.18515243,22204.0,22200.0,0.15]
[1674248299931,0.307854,22203.0,22197.0,0.00341979]
[1674248300195,0.18502243,22202.0,22197.0,0.31341398]
[1674248300436,0.18502243,22202.0,22197.0,0.36804379]
[1674248300674,0.18502243,22202.0,22199.0,0.15]
[1674248300912,0.00013,22204.0,22199.0,0.600468]
[1674248301154,0.00013,22204.0,22200.0,0.06862029]
[1674248301417,0.1037,22207.0,22201.0,0.51904629]
[1674248301707,0.1037,22207.0,22203.0,0.15]
[1674248301952,0.1037,22207.0,22205.0,0.1339]
[1674248302191,0.0677,22207.0,22206.0,1.46237929]
[1674248302448,0.0677,22207.0,22206.0,1.403759]
[1674248302684,0.0677,22207.0,22206.0,1.553759]
[1674248303174,6e-05,22209.0,22206.0,1.553659]
[1674248303414,6e-05,22209.0,22206.0,1.55960429]
[1674248303654,6e-05,22209.0,22207.0,0.202668]
[1674248303960,6e-05,22209.0,22208.0,1.34847771]
[1674248304140,6e-05,22209.0,22208.0,1.40114171]
[1674248304379,6e-05,22209.0,22208.0,1.61628868]
[1674248304639,2.415e-05,22216.0,22209.0,0.15]
[1674248304884,0.11557,22228.0,22215.0,0.1339]
[1674248305129,0.01456978,22230.0,22218.0,1.350071]
[1674248305368,0.01456978,22230.0,22219.0,0.05862029]
[1674248305618,0.01456978,22230.0,22222.0,1.349994]
[1674248305866,0.01456978,22230.0,22224.0,0.1339]
[1674248306111,0.01456978,22230.0,22225.0,1.402358]
[1674248306371,0.15,22233.0,22228.0,0.1339]
[1674248306615,0.15,22242.0,22229.0,1.46535944]
[1674248306869,0.33502243,22242.0,22230.0,0.05862029]
[1674248307110,0.18502243,22242.0,22233.0,0.899538]
[1674248307350,0.18324,22245.0,22234.0,0.04479614]
[1674248307351,0.0664,22245.0,22234.0,0.04479614]
[1674248307598,0.15,22241.0,22235.0,0.04479615]
[1674248307856,0.319113,22240.0,22235.0,0.04479615]
[1674248308089,0.30973,22239.0,22236.0,0.04479615]
[1674248308334,0.03614423,22235.0,22231.0,0.449805]
[1674248308571,0.03114423,22235.0,22234.0,0.15]
[1674248308827,0.03114423,22235.0,22231.0,0.449805]
[1674248309090,0.21616666,22235.0,22231.0,0.6676523]
[1674248309335,0.03114423,22235.0,22231.0,0.6676523]
[1674248309587,0.03114423,22235.0,22232.0,0.052531]
[1674248309849,0.03114423,22235.0,22233.0,0.502318]
[1674248310073,0.03114423,22235.0,22234.0,0.052533]
[1674248310336,0.03114423,22235.0,22233.0,0.89772014]
[1674248310581,0.03114423,22235.0,22233.0,0.15]
[1674248310823,0.22076666,22235.0,22233.0,0.15]
[1674248311065,0.03574423,22235.0,22234.0,0.599761]
[1674248311307,0.03574423,22235.0,22234.0,0.11977225]
[1674248311600,0.03574423,22235.0,22234.0,0.583661]
[1674248311843,4.23e-06,22235.0,22234.0,0.583661]
[1674248312566,4.23e-06,22235.0,22234.0,0.449761]
[1674248313602,4.23e-06,22235.0,22234.0,0.90423415]
[1674248313846,4.23e-06,22235.0,22234.0,1.03813415]
[1674248314582,4.23e-06,22235.0,22234.0,1.33813415]
[1674248314826,4.23e-06,22235.0,22234.0,3.03813415]
[1674248315066,0.0136999,22247.0,22235.0,0.15]
[1674248315315,0.0136999,22247.0,22238.0,0.899336]
[1674248315316,0.18502243,22246.0,22238.0,0.899336]
[1674248315575,0.18502243,22246.0,22239.0,0.19479615]
[1674248315834,0.01601175,22244.0,22239.0,0.04479615]
[1674248316067,0.01375903,22244.0,22239.0,0.449644]
[1674248316315,0.19878146,22244.0,22240.0,0.15]
[1674248316560,0.01375903,22244.0,22240.0,0.04479615]
[1674248316817,0.01375903,22244.0,22239.0,0.34792834]
[1674248317044,0.19652843,22244.0,22240.0,0.15]
[1674248317280,0.011506,22244.0,22240.0,0.15]
[1674248318019,0.00925257,22244.0,22240.0,0.15]
[1674248318287,0.00925257,22244.0,22235.0,0.11837]
[1674248318288,0.18502243,22243.0,22235.0,0.11837]
[1674248318515,0.66382543,22242.0,22235.0,0.39682175]
[1674248318750,0.18502243,22241.0,22237.0,0.449698]
[1674248318995,0.00925257,22244.0,22238.0,0.04704958]
[1674248319490,0.00925257,22244.0,22239.0,0.04704958]
[1674248319730,0.194275,22244.0,22240.0,0.449632]
[1674248319976,0.00699944,22244.0,22240.0,0.899272]
[1674248320522,0.00699944,22244.0,22237.0,0.449694]
[1674248320777,0.18502243,22243.0,22237.0,0.67474214]
[1674248321023,0.1827693,22242.0,22234.0,0.449756]
[1674248321257,0.15,22240.0,22234.0,0.599756]
[1674248321512,0.15,22240.0,22234.0,0.36667508]
[1674248321787,0.18502243,22239.0,22231.0,0.449815]
[1674248322053,0.50957959,22238.0,22230.0,0.449823]
[1674248322291,0.18502243,22237.0,22234.0,0.15]
[1674248322535,0.18502243,22240.0,22234.0,0.20430271]
[1674248322776,0.05517442,22244.0,22235.0,0.05973297]
[1674248323091,0.00699944,22244.0,22237.0,0.899375]
[1674248323266,0.00699944,22244.0,22238.0,0.15]
[1674248323505,0.00699944,22244.0,22239.0,0.0393027]
[1674248323749,0.00699944,22244.0,22240.0,0.9385627]
[1674248323983,0.00699944,22244.0,22241.0,0.0393027]
[1674248324228,0.00699944,22244.0,22242.0,1.0724007]
[1674248324483,0.00699944,22244.0,22243.0,0.15]
[1674248324732,0.0136999,22247.0,22243.0,0.85642444]
[1674248324994,9.9e-06,22247.0,22244.0,1.3020805]
[1674248325233,9.9e-06,22247.0,22246.0,0.1339]
[1674248325474,9.9e-06,22247.0,22246.0,0.899038]
[1674248325738,0.01601175,22253.0,22247.0,0.15]
[1674248325739,0.0156814,22253.0,22247.0,0.15]
[1674248325976,0.0156814,22253.0,22248.0,0.888935]
[1674248326466,0.0156814,22253.0,22249.0,0.15]
[1674248326734,0.0156814,22253.0,22250.0,0.449434]
[1674248327243,0.0156814,22253.0,22248.0,0.449473]
[1674248327479,0.0156814,22253.0,22245.0,0.449532]
[1674248327480,0.18502243,22252.0,22245.0,0.449532]
[1674248327730,0.50018543,22251.0,22245.0,0.449532]
[1674248327981,0.15,22249.0,22245.0,0.44946743]
[1674248328243,0.33502243,22249.0,22245.0,0.15]
[1674248328483,0.18502243,22248.0,22243.0,0.449578]
[1674248328717,0.18502243,22247.0,22243.0,0.449579]
[1674248329205,0.18502243,22246.0,22243.0,0.449579]
[1674248329481,0.18502243,22245.0,22239.0,0.449651]
[1674248329728,0.18502243,22245.0,22236.0,0.449707]
[1674248329729,0.49476543,22244.0,22237.0,0.449689]
[1674248329972,0.749525,22246.0,22237.0,0.599689]
[1674248329973,0.97358843,22243.0,22237.0,0.599689]
[1674248330214,0.97358843,22243.0,22235.0,0.449731]
[1674248330215,0.50612943,22242.0,22235.0,0.449731]
[1674248330456,0.50673643,22241.0,22235.0,0.449731]
[1674248330699,0.50673643,22241.0,22234.0,0.449743]
[1674248330700,0.79462943,22240.0,22234.0,0.449743]
[1674248330939,0.49684643,22239.0,22234.0,0.449743]
[1674248331194,0.449566,22244.0,22234.0,0.5466597]
[1674248331437,0.449566,22244.0,22235.0,0.15]
[1674248331438,0.48502243,22243.0,22235.0,0.15]
[1674248331689,0.18502243,22242.0,22235.0,0.599726]
[1674248331958,0.50707643,22241.0,22233.0,0.449772]
[1674248332201,0.15,22239.0,22235.0,0.15]
[1674248332440,0.33502243,22239.0,22235.0,0.449723]
[1674248332922,0.15,22239.0,22235.0,0.449723]
[1674248333174,0.15,22241.0,22236.0,0.15]
[1674248333414,0.72415393,22241.0,22233.0,0.599771]
[1674248333661,0.15,22239.0,22233.0,0.599771]
[1674248333897,0.3327687,22239.0,22233.0,0.599771]
[1674248334432,0.18502243,22238.0,22233.0,0.599771]
[1674248334668,0.18502243,22238.0,22233.0,0.594771]
[1674248334902,0.15,22243.0,22233.0,0.7718588]
[1674248335139,0.18502243,22242.0,22235.0,0.15]
[1674248335393,0.18502243,22242.0,22237.0,0.449698]
[1674248335779,0.15,22243.0,22237.0,0.449698]
[1674248336121,0.63502243,22243.0,22237.0,0.449698]
[1674248336373,0.49984443,22242.0,22233.0,0.594771]
[1674248336625,0.49984443,22242.0,22231.0,0.599821]
[1674248336626,1.40911158,22241.0,22231.0,0.599821]
[1674248336917,0.63421043,22240.0,22231.0,0.449821]
[1674248337170,0.63421043,22240.0,22229.0,0.569782]
[1674248337171,0.449693,22238.0,22229.0,0.569782]
[1674248337431,0.449693,22238.0,22228.0,0.569807]
[1674248337432,0.19790001,22236.0,22228.0,0.569807]
[1674248337692,1.07946543,22235.0,22226.0,0.449911]
[1674248337954,1.07946543,22235.0,22225.0,1.46292973]
[1674248337955,0.15,22243.0,22234.0,0.45447315]
[1674248338232,0.15,22247.0,22231.0,0.1339]
[1674248338233,0.15,22251.0,22240.0,0.1339]
[1674248338482,0.15,22251.0,22242.0,1.348755]
[1674248338728,0.15,22251.0,22243.0,0.48425443]
[1674248338991,0.15,22251.0,22245.0,1.348593]
[1674248339244,0.0156814,22253.0,22246.0,0.61882643]
[1674248339491,0.0156814,22253.0,22248.0,1.348428]
[1674248339768,0.0156814,22253.0,22249.0,0.49960143]
[1674248340012,0.0156814,22253.0,22249.0,0.18502243]
[1674248340257,0.0156814,22253.0,22248.0,0.898952]
[1674248340519,0.0156814,22253.0,22249.0,0.63446243]
[1674248341022,0.0156814,22253.0,22249.0,0.44944]
[1674248341269,0.01342888,22253.0,22249.0,0.44944]
[1674248342118,0.01117636,22253.0,22248.0,0.3009619]
[1674248342312,0.330947,22252.0,22247.0,0.449496]
[1674248342570,0.01117636,22253.0,22247.0,0.449487]
[1674248342571,0.312178,22251.0,22247.0,0.449487]
[1674248342818,0.01117636,22253.0,22247.0,0.449488]
[1674248343087,0.01117636,22253.0,22248.0,0.22997113]
[1674248343375,0.00892384,22253.0,22249.0,0.33502243]
[1674248343660,0.00892384,22253.0,22249.0,0.18502243]
[1674248344182,0.00667132,22253.0,22249.0,0.18502243]
[1674248344445,0.00667132,22253.0,22249.0,0.63447443]
[1674248344704,0.00667132,22253.0,22250.0,0.15]
[1674248345218,0.0044188,22253.0,22250.0,0.88934293]
[1674248345483,0.0044188,22253.0,22250.0,0.599429]
[1674248346016,0.0044188,22253.0,22251.0,0.312321]
[1674248346263,0.0044188,22253.0,22252.0,0.912339]
[1674248346264,0.00216628,22253.0,22252.0,0.912339]
[1674248346506,0.00216628,22253.0,22252.0,1.29901453]
[1674248346767,0.16724292,22261.0,22252.0,1.88738768]
[1674248347032,0.01724292,22261.0,22253.0,0.50649843]
[1674248347318,0.1338,22265.0,22256.0,0.6]
[1674248347585,0.1338,22265.0,22257.0,0.95355743]
[1674248347844,0.1338,22265.0,22258.0,0.18502243]
[1674248348275,0.15,22266.0,22260.0,0.449234]
[1674248348277,0.15,22266.0,22261.0,0.6]
[1674248348488,0.60447315,22266.0,22261.0,0.18502243]
[1674248348741,0.1339,22264.0,22261.0,0.33502243]
[1674248348964,0.1339,22264.0,22258.0,0.15]
[1674248348965,0.318266,22263.0,22258.0,0.15]
[1674248349193,0.3065088,22262.0,22258.0,0.18502243]
[1674248349408,0.314641,22261.0,22253.0,1.535432]
[1674248349629,0.1339,22262.0,22253.0,1.535432]
[1674248349630,0.15,22262.0,22257.0,0.6]
[1674248349880,0.1332,22266.0,22258.0,0.50280243]
[1674248350109,0.18207498,22268.0,22259.0,1.55869543]
[1674248350328,1.11557415,22268.0,22260.0,0.18502243]
[1674248350550,1.11557415,22268.0,22261.0,0.18502243]
[1674248350551,0.71466113,22268.0,22261.0,0.18502243]
[1674248350768,0.1339,22265.0,22262.0,0.18502243]
[1674248350980,0.1339,22265.0,22258.0,0.44926]
[1674248350981,0.15,22263.0,22259.0,0.18502243]
[1674248351231,0.326082,22262.0,22258.0,0.44926]
[1674248351489,0.314034,22261.0,22254.0,1.049352]
[1674248351700,0.45447315,22260.0,22254.0,1.049352]
[1674248351915,0.1333,22260.0,22258.0,6e-05]
[1674248352161,0.1332,22262.0,22258.0,6e-05]
[1674248352401,0.732966,22269.0,22259.0,0.18502243]
[1674248352615,0.732966,22269.0,22262.0,0.449195]
[1674248352616,0.04817498,22268.0,22262.0,0.449195]
[1674248352844,0.15,22269.0,22264.0,0.6]
[1674248353060,0.15,22270.0,22265.0,0.63415643]
[1674248353277,0.01688715,22275.0,22268.0,0.6]
[1674248353494,0.01688715,22275.0,22271.0,0.6]
[1674248353752,0.01688715,22275.0,22272.0,0.49293143]
[1674248353979,0.01688715,22275.0,22273.0,0.49606743]
[1674248354197,0.01688715,22275.0,22274.0,0.50254243]
[1674248354416,0.01688715,22275.0,22274.0,0.65254243]
[1674248354637,0.01688715,22275.0,22274.0,1.10254243]
[1674248354868,0.01688715,22275.0,22274.0,0.91752]
[1674248355118,0.01463686,22275.0,22274.0,0.91752]
[1674248355360,0.01463686,22275.0,22274.0,1.2689683]
[1674248355792,0.01463686,22275.0,22274.0,0.44252]
[1674248356005,0.08053657,22275.0,22272.0,6e-05]
[1674248356226,0.01238657,22275.0,22272.0,0.449043]
[1674248356665,0.01238657,22275.0,22272.0,6e-05]
[1674248356887,0.14568657,22275.0,22272.0,6e-05]
[1674248357106,0.19161126,22275.0,22272.0,6e-05]
[1674248357345,0.05831126,22275.0,22272.0,0.38035843]
[1674248357663,0.01013628,22275.0,22274.0,0.6]
[1674248357937,0.01013628,22275.0,22274.0,1.78619]
[1674248358190,0.00788599,22275.0,22274.0,1.78619]
[1674248358448,0.00788599,22275.0,22274.0,2.19473543]
[1674248358752,0.00788599,22275.0,22274.0,1.99194362]
[1674248359297,0.0056357,22275.0,22274.0,2.22289377]
[1674248359545,0.0501,22280.0,22275.0,0.00563]
[1674248359806,0.0501,22280.0,22279.0,0.57723062]
[1674248360063,0.0501,22280.0,22279.0,2.46375411]
[1674248360312,0.0501,22280.0,22279.0,2.91822726]
[1674248360571,0.01962497,22284.0,22280.0,0.0501]
[1674248360830,4.97e-06,22284.0,22283.0,0.57723062]
[1674248361104,4.97e-06,22284.0,22283.0,2.14975715]
[1674248361409,4.97e-06,22284.0,22283.0,2.6042303]